fUSD/lending_fUSD_20250806
["ID","MTS","AMOUNT","RATE_DAILY","PERIOD"]
[377589314,1754448736017,-883.72,0.00036712,14]
[377589315,1754448736027,-400.0,0.00036712,14]
[377589316,1754448736036,-2625.94,0.00036712,14]
[377589317,1754448736045,-1176.86,0.00036712,14]
[377589318,1754448736054,-400.0,0.00036712,14]
[377589319,1754448736065,-2001.07,0.00036712,14]
[377589320,1754448736074,-1132.6,0.00036712,14]
[377589321,1754448736084,-1708.89,0.00036712,14]
[377589322,1754448736093,-2209.33,0.00036712,14]
[377589323,1754448736102,-2717.6,0.00036712,14]
[377589324,1754448736111,-1659.02,0.00036712,14]
[377589325,1754448736121,-2337.97,0.00036712,14]
[377589326,1754448736130,-323.76867118,0.00036712,14]
[377589327,1754448736140,-1295.16,0.00036712,14]
[377589328,1754448736150,-1513.53,0.00036712,14]
[377589329,1754448736159,-1663.17,0.00036712,14]
[377589330,1754448736169,-2361.68,0.00036712,14]
[377589331,1754448736179,-2090.44,0.00036712,14]
[377589332,1754448736188,-425.69,0.00036712,14]
[377589333,1754448736199,-949.45,0.00036712,14]
[377589334,1754448736210,-400.0,0.00036712,14]
[377589335,1754448736220,-2974.22,0.00036712,14]
[377589336,1754448736230,-468.15,0.00036712,14]
[377589337,1754448736241,-702.26,0.00036712,14]
[377589338,1754448736251,-2095.59,0.00036712,14]
[377589339,1754448736260,-1740.13,0.00036712,14]
[377589340,1754448736270,-1198.3,0.00036712,14]
[377589341,1754448736280,-1148.8,0.00036712,14]
[377589342,1754448736290,-467.46,0.00036712,14]
[377589343,1754448736300,-954.12,0.00036712,14]
[377589344,1754448736310,-2021.48,0.00036712,14]
[377589345,1754448736319,-2962.89,0.00036712,14]
[377589346,1754448736329,-662.22,0.00036712,14]
[377589347,1754448736339,-2546.61,0.00036712,14]
[377589348,1754448736349,-2356.45,0.00036712,14]
[377589349,1754448736358,-504.61,0.00036712,14]
[377589350,1754448736369,-2575.51,0.00036712,14]
[377589351,1754448736379,-2130.93,0.00036712,14]
[377589352,1754448736388,-400.0,0.00036712,14]
[377589353,1754448736399,-423.2,0.00036712,14]
[377589354,1754448736410,-400.0,0.00036712,14]
[377589355,1754448736420,-856.83,0.00036712,14]
[377589356,1754448736432,-1766.95,0.00036712,14]
[377589357,1754448736442,-400.0,0.00036712,14]
[377589358,1754448736453,-400.0,0.00036712,14]
[377589359,1754448736466,-3248.58,0.00036712,14]
[377589360,1754448736476,-5306.84,0.00036712,14]
[377589361,1754448736485,-496.21,0.00036712,14]
[377589362,1754448736496,-547.97,0.00036712,14]
[377589363,1754448736507,-888.56,0.00036712,14]
[377589364,1754448736519,-727.35,0.00036712,14]
[377589365,1754448736529,-3016.17,0.00036712,14]
[377589366,1754448736539,-2668.39,0.00036712,14]
[377589367,1754448736550,-400.0,0.00036712,14]
[377589368,1754448736561,-3791.14,0.00036712,14]
[377589369,1754448736571,-400.0,0.00036712,14]
[377589370,1754448736580,-605.14,0.00036712,14]
[377589371,1754448736591,-975.71,0.00036712,14]
[377589372,1754448736602,-2054.01,0.00036712,14]
[377589373,1754448736612,-400.0,0.00036712,14]
[377589374,1754448736622,-400.0,0.00036712,14]
[377589375,1754448736632,-400.0,0.00036712,14]
[377589376,1754448736642,-3485.41,0.00036712,14]
[377589377,1754448736654,-2009.81,0.00036712,14]
[377589378,1754448736663,-400.0,0.00036712,14]
[377589379,1754448736673,-2179.98,0.00036712,14]
[377589380,1754448736683,-400.0,0.00036712,14]
[377589381,1754448736693,-400.0,0.00036712,14]
[377589382,1754448736704,-1517.52,0.00036712,14]
[377589383,1754448736714,-1388.31,0.00036712,14]
[377589384,1754448736724,-957.04,0.00036712,14]
[377589385,1754448736735,-400.0,0.00036712,2]
[377589386,1754448736745,-400.0,0.00036712,14]
[377589387,1754448736754,-1920.97,0.00036712,14]
[377589388,1754448736764,-615.01,0.00036712,14]
[377589389,1754448736774,-2558.14,0.00036712,14]
[377589390,1754448736784,-1537.42,0.00036712,14]
[377589391,1754448736794,-410.84,0.00036712,14]
[377589392,1754448736804,-1561.14,0.00036712,14]
[377589393,1754448736814,-1672.02,0.00036712,14]
[377589394,1754448736824,-2448.42,0.00036712,14]
[377589395,1754448736835,-2660.98,0.00036712,14]
[377589396,1754448736844,-1718.51,0.00036712,14]
[377589397,1754448736855,-1497.84,0.00036712,14]
[377589398,1754448736866,-400.0,0.00036712,14]
[377589399,1754448736878,-2286.3,0.00036712,14]
[377589400,1754448736888,-1193.12,0.00036712,14]
[377589401,1754448736898,-400.0,0.00036712,14]
[377589402,1754448736908,-2354.23,0.00036712,14]
[377589403,1754448736920,-818.29,0.00036712,2]
[377589404,1754448736930,-2817.66,0.00036712,14]
[377589405,1754448736939,-400.0,0.00036712,14]
[377589406,1754448736951,-400.0,0.00036712,14]
[377589407,1754448736961,-2306.54,0.00036712,14]
[377589408,1754448736971,-12433.87,0.00036712,14]
[377589409,1754448736981,-775.18,0.00036712,14]
[377589410,1754448736993,-400.0,0.00036712,14]
[377589411,1754448737003,-1789.7,0.00036712,14]
[377589412,1754448737013,-751.56,0.00036712,14]
[377589413,1754448737023,-1000.0,0.00036721,7]
[377589414,1754448737033,-150.0,0.00036749,2]
[377589415,1754448737043,-312.0,0.0003675,2]
[377589416,1754448737053,-150.0,0.00036755,2]
[377589417,1754448737064,-347.12007286,0.00036767,10]
[377589418,1754448737073,-151.56,0.00036771,60]
[377589419,1754448737084,-1000.0,0.00036784,7]
[377589420,1754448737094,-150.0,0.00036791,2]
[377589421,1754448737104,-150.0,0.00036792,2]
[377589422,1754448737113,-910.8039,0.00036801,2]
[377589423,1754448737123,-150.0,0.00036805,2]
[377589424,1754448737134,-150.0,0.00036808,2]
[377589425,1754448737145,-150.0,0.00036844,2]
[377589426,1754448737155,-1000.0,0.00036846,7]
[377589427,1754448737166,-150.0,0.00036853,2]
[377589428,1754448737175,-151.56,0.00036871,60]
[377589429,1754448737186,-150.0,0.00036877,2]
[377589430,1754448737196,-150.0,0.00036878,2]
[377589431,1754448737367,-150.0,0.00036891,2]
[377589432,1754448737378,-1000.0,0.00036912,7]
[377589433,1754448737389,-78630.5987676,0.00036961,2]
[377589434,1754448737399,-7218.7856465,0.00036961,2]
[377589435,1754448737410,-20609.6162146,0.00036961,2]
[377589436,1754448737420,-1873.7481403,0.00036961,2]
[377589437,1754448737432,-88124.0736158,0.00036961,2]
[377589438,1754448737443,-151.56,0.00036971,60]
[377589439,1754448737454,-150.0,0.00036974,2]
[377589440,1754448737464,-150.0,0.0003698,2]
[377589441,1754448737474,-392.47,0.00036985,2]
[377589442,1754448737485,-155.643466,0.00036986,14]
[377589443,1754448737495,-1106.87216,0.00036986,14]
[377589444,1754448737505,-887.819081,0.00036986,14]
[377589445,1754448737515,-1255.615788,0.00036986,14]
[377589446,1754448737525,-192.679796,0.00036986,14]
[377589447,1754448737536,-151.0,0.00036986,7]
[377589448,1754448737546,-1721.73,0.00036986,14]
[377589449,1754448737555,-151.0,0.00036986,7]
[377589450,1754448737566,-151.0,0.00036986,7]
[377589451,1754448737576,-155.350478,0.00036986,14]
[377589452,1754448737586,-158.6041,0.00036986,14]
[377589453,1754448737596,-242.340368,0.00036986,7]
[377589454,1754448737606,-242.340368,0.00036986,7]
[377589455,1754448737616,-158.6041,0.00036986,14]
[377589456,1754448737626,-400.0,0.00036986,14]
[377589457,1754448737637,-400.0,0.00036986,14]
[377589458,1754448737647,-400.0,0.00036986,14]
[377589459,1754448737657,-400.0,0.00036986,14]
[377589460,1754448737667,-158.6041,0.00036986,14]
[377589461,1754448737677,-400.0,0.00036986,14]
[377589462,1754448737687,-500.0,0.00036986,120]
[377589463,1754448737696,-500.0,0.00036986,120]
[377589464,1754448737707,-400.0,0.00036986,14]
[377589465,1754448737717,-155.35048,0.00036986,14]
[377589466,1754448737726,-400.0,0.00036986,14]
[377589467,1754448737736,-400.0,0.00036986,14]
[377589468,1754448737746,-151.0,0.00036986,7]
[377589469,1754448737755,-151.0,0.00036986,7]
[377589470,1754448737764,-151.0,0.00036986,7]
[377589471,1754448737774,-151.0,0.00036986,7]
[377589472,1754448737783,-152.0,0.00036986,7]
[377589473,1754448737792,-152.0,0.00036986,7]
[377589474,1754448737802,-256.17247093,0.00036986,7]
[377589475,1754448737814,-217.66094799,0.00036986,7]
[377589476,1754448737824,-400.0,0.00036986,14]
[377589477,1754448737833,-1214.0,0.00036986,7]
[377589478,1754448737843,-1214.0,0.00036986,7]
[377589479,1754448737853,-1214.0,0.00036986,7]
[377589480,1754448737863,-1214.0,0.00036986,7]
[377589481,1754448737876,-1214.0,0.00036986,7]
[377589482,1754448737885,-1214.0,0.00036986,7]
[377589483,1754448737895,-1214.0,0.00036986,7]
[377589484,1754448737904,-1214.0,0.00036986,7]
[377589485,1754448737915,-1214.0,0.00036986,7]
[377589486,1754448737924,-1214.0,0.00036986,7]
[377589487,1754448737934,-1214.0,0.00036986,7]
[377589488,1754448737943,-1214.0,0.00036986,7]
[377589489,1754448737954,-1214.0,0.00036986,7]
[377589490,1754448737964,-1214.0,0.00036986,7]
[377589491,1754448737974,-1214.0,0.00036986,7]
[377589492,1754448737983,-1214.0,0.00036986,7]
[377589493,1754448737993,-1214.0,0.00036986,7]
[377589494,1754448738002,-915.32874093,0.00036986,7]
[377589495,1754448738011,-400.0,0.00036986,14]
[377589496,1754448738021,-400.0,0.00036986,14]
[377589497,1754448738030,-400.0,0.00036986,14]
[377589498,1754448738041,-400.0,0.00036986,14]
[377589499,1754448738051,-400.0,0.00036986,14]
[377589500,1754448738061,-992.778479,0.00036986,7]
[377589501,1754448738071,-400.0,0.00036986,14]
[377589502,1754448738081,-400.0,0.00036986,14]
[377589503,1754448738090,-400.0,0.00036986,14]
[377589504,1754448738100,-400.0,0.00036986,14]
[377589505,1754448738109,-464.89867646,0.00036986,14]
[377589506,1754448738119,-400.0,0.00036986,14]
[377589507,1754448738130,-155.350478,0.00036986,14]
[377589508,1754448738140,-332.03281846,0.00036986,14]
[377589509,1754448738150,-158.604099,0.00036986,14]
[377589510,1754448738160,-400.0,0.00036986,14]
[377589511,1754448738170,-400.0,0.00036986,14]
[377589512,1754448738180,-1879.66,0.00036986,14]
[377589513,1754448738189,-517.54,0.00036986,14]
[377589514,1754448738199,-400.0,0.00036986,2]
[377589515,1754448738208,-400.0,0.00036986,14]
[377589516,1754448738217,-400.0,0.00036986,14]
[377589517,1754448738227,-400.0,0.00036986,14]
[377589518,1754448738236,-933.27,0.00036986,14]
[377589519,1754448738245,-400.0,0.00036986,14]
[377589520,1754448738254,-400.0,0.00036986,14]
[377589521,1754448738264,-708.86,0.00036986,14]
[377589522,1754448738273,-412.42,0.00036986,14]
[377589523,1754448738282,-538.83389548,0.00036986,14]
[377589524,1754448738291,-400.0,0.00036986,14]
[377589525,1754448738300,-400.0,0.00036986,14]
[377589526,1754448738309,-415.77,0.00036986,14]
[377589527,1754448738320,-165.794744,0.00036986,14]
[377589528,1754448738330,-1925.55,0.00036986,14]
[377589529,1754448738339,-158.6041,0.00036986,14]
[377589530,1754448738348,-866.96,0.00036986,14]
[377589531,1754448738358,-523.82,0.00036986,14]
[377589532,1754448738368,-400.0,0.00036986,14]
[377589533,1754448738377,-400.0,0.00036986,14]
[377589534,1754448738387,-400.0,0.00036986,14]
[377589535,1754448738397,-400.0,0.00036986,14]
[377589536,1754448738407,-1993.73,0.00036986,14]
[377589537,1754448738416,-478.37,0.00036986,14]
[377589538,1754448738426,-1455.59,0.00036986,14]
[377589539,1754448738435,-400.0,0.00036986,14]
[377589540,1754448738445,-1137.51,0.00036986,14]
[377589541,1754448738454,-515.01451102,0.00036986,14]
[377589542,1754448738463,-1494.66,0.00036986,14]
[377589543,1754448738473,-2002.12,0.00036986,14]
[377589544,1754448738482,-400.0,0.00036986,14]
[377589545,1754448738491,-400.0,0.00036986,14]
[377589546,1754448738500,-400.0,0.00036986,14]
[377589547,1754448738510,-1040.39,0.00036986,14]
[377589548,1754448738519,-400.0,0.00036986,14]
[377589549,1754448738529,-400.0,0.00036986,14]
[377589550,1754448738538,-400.0,0.00036986,14]
[377589551,1754448738548,-400.0,0.00036986,14]
[377589552,1754448738557,-662.16,0.00036986,14]
[377589553,1754448738568,-400.0,0.00036986,14]
[377589554,1754448738578,-400.0,0.00036986,14]
[377589555,1754448738589,-400.0,0.00036986,14]
[377589556,1754448738598,-2153.57,0.00036986,14]
[377589557,1754448738607,-400.0,0.00036986,14]
[377589558,1754448738616,-1355.9,0.00036986,14]
[377589559,1754448738626,-904.68,0.00036986,14]
[377589560,1754448738635,-1213.0,0.00036986,7]
[377589561,1754448738644,-545.31,0.00036986,14]
[377589562,1754448738654,-400.0,0.00036986,14]
[377589563,1754448738663,-400.0,0.00036986,14]
[377589564,1754448738672,-155.97795091,0.00036986,7]
[377589565,1754448738681,-400.0,0.00036986,14]
[377589566,1754448738690,-400.0,0.00036986,14]
[377589567,1754448738699,-726.19,0.00036986,14]
[377589568,1754448738709,-1848.23,0.00036986,14]
[377589569,1754448738718,-400.0,0.00036986,14]
[377589570,1754448738728,-837.58,0.00036986,14]
[377589571,1754448738737,-400.0,0.00036986,14]
[377589572,1754448738747,-400.0,0.00036986,14]
[377589573,1754448738757,-400.0,0.00036986,14]
[377589574,1754448738767,-426.53,0.00036986,14]
[377589575,1754448738777,-2053.66,0.00036986,14]
[377589576,1754448738786,-400.0,0.00036986,14]
[377589577,1754448738796,-463.84,0.00036986,14]
[377589578,1754448738806,-1680.73,0.00036986,14]
[377589579,1754448738816,-400.0,0.00036986,14]
[377589580,1754448738826,-589.79,0.00036986,14]
[377589581,1754448738836,-400.0,0.00036986,14]
[377589582,1754448738846,-400.0,0.00036986,14]
[377589583,1754448738856,-400.0,0.00036986,5]
[377589584,1754448738870,-485.82,0.00036986,14]
[377589585,1754448738889,-1174.99,0.00036986,14]
[377589586,1754448738908,-1560.83,0.00036986,14]
[377589587,1754448738918,-1343.09,0.00036986,14]
[377589588,1754448738927,-400.0,0.00036986,14]
[377589589,1754448738937,-400.0,0.00036986,14]
[377589590,1754448738947,-400.0,0.00036986,14]
[377589591,1754448738956,-400.0,0.00036986,14]
[377589592,1754448738965,-400.0,0.00036986,14]
[377589593,1754448738975,-400.0,0.00036986,14]
[377589594,1754448738985,-652.79,0.00036986,14]
[377589595,1754448738994,-400.0,0.00036986,14]
[377589596,1754448739003,-807.49,0.00036986,14]
[377589597,1754448739013,-2272.01,0.00036986,14]
[377589598,1754448739023,-439.11,0.00036986,14]
[377589599,1754448739033,-400.0,0.00036986,14]
[377589600,1754448739043,-400.0,0.00036986,14]
[377589601,1754448739053,-1269.54,0.00036986,14]
[377589602,1754448739064,-400.0,0.00036986,14]
[377589603,1754448739073,-400.0,0.00036986,14]
[377589604,1754448739083,-1601.77,0.00036986,14]
[377589605,1754448739092,-400.0,0.00036986,14]
[377589606,1754448739102,-549.88,0.00036986,14]
[377589607,1754448739111,-691.52,0.00036986,14]
[377589608,1754448739120,-400.0,0.00036986,14]
[377589609,1754448739131,-937.63,0.00036986,14]
[377589610,1754448739141,-400.0,0.00036986,14]
[377589611,1754448739150,-1238.53,0.00036986,14]
[377589612,1754448739160,-400.0,0.00036986,14]
[377589613,1754448739171,-758.93,0.00036986,14]
[377589614,1754448739180,-842.35,0.00036986,14]
[377589615,1754448739189,-400.0,0.00036986,14]
[377589616,1754448739199,-1051.66,0.00036986,14]
[377589617,1754448739209,-566.9,0.00036986,14]
[377589618,1754448739218,-1884.93,0.00036986,14]
[377589619,1754448739229,-1133.77,0.00036986,14]
[377589620,1754448739239,-400.0,0.00036986,14]
[377589621,1754448739249,-1135.75,0.00036986,14]
[377589622,1754448739259,-274.00062207,0.00036986,14]
[377589623,1754448739269,-1340.96,0.00036986,14]
[377589624,1754448739279,-1269.95,0.00036986,14]
[377589625,1754448739289,-1245.02,0.00036986,14]
[377589626,1754448739298,-400.0,0.00036986,14]
[377589627,1754448739308,-400.0,0.00036986,14]
[377589628,1754448739319,-400.0,0.00036986,14]
[377589629,1754448739329,-400.0,0.00036986,14]
[377589630,1754448739339,-400.96,0.00036986,14]
[377589631,1754448739349,-888.4,0.00036986,14]
[377589632,1754448739359,-400.0,0.00036986,14]
[377589633,1754448739368,-1391.51,0.00036986,14]
[377589634,1754448739378,-885.84,0.00036986,14]
[377589635,1754448739388,-2022.35,0.00036986,14]
[377589636,1754448739397,-400.0,0.00036986,14]
[377589637,1754448739407,-400.0,0.00036986,14]
[377589638,1754448739416,-1485.63,0.00036986,14]
[377589639,1754448739426,-577.94,0.00036986,14]
[377589640,1754448739436,-400.0,0.00036986,14]
[377589641,1754448739445,-2205.6,0.00036986,14]
[377589642,1754448739455,-594.52,0.00036986,14]
[377589643,1754448739464,-400.0,0.00036986,14]
[377589644,1754448739474,-516.69,0.00036986,14]
[377589645,1754448739484,-190.75631407,0.00036986,14]
[377589646,1754448739494,-400.99,0.00036986,14]
[377589647,1754448739504,-400.0,0.00036986,14]
[377589648,1754448739514,-963.31,0.00036986,14]
[377589649,1754448739523,-400.0,0.00036986,14]
[377589650,1754448739533,-400.0,0.00036986,14]
[377589651,1754448739543,-798.43,0.00036986,14]
[377589652,1754448739553,-400.0,0.00036986,14]
[377589653,1754448739563,-400.0,0.00036986,14]
[377589654,1754448739572,-825.61,0.00036986,14]
[377589655,1754448739582,-400.0,0.00036986,14]
[377589656,1754448739592,-400.0,0.00036986,14]
[377589657,1754448739601,-400.0,0.00036986,14]
[377589658,1754448739611,-1955.89,0.00036986,14]
[377589659,1754448739620,-400.0,0.00036986,14]
[377589660,1754448739630,-400.0,0.00036986,14]
[377589661,1754448739639,-425.14,0.00036986,14]
[377589662,1754448739648,-872.75,0.00036986,14]
[377589663,1754448739659,-672.46,0.00036986,14]
[377589664,1754448739668,-666.07,0.00036986,14]
[377589665,1754448739678,-400.0,0.00036986,7]
[377589666,1754448739688,-305.67670388,0.00036986,14]
[377589667,1754448739698,-2048.4,0.00036986,14]
[377589668,1754448739708,-1186.37,0.00036986,14]
[377589669,1754448739717,-1867.25,0.00036986,14]
[377589670,1754448739727,-400.0,0.00036986,14]
[377589671,1754448739737,-400.0,0.00036986,14]
[377589672,1754448739746,-400.0,0.00036986,14]
[377589673,1754448739756,-400.0,0.00036986,14]
[377589674,1754448739765,-1486.37,0.00036986,14]
[377589675,1754448739775,-1282.75,0.00036986,14]
[377589676,1754448739785,-400.0,0.00036986,14]
[377589677,1754448739794,-620.41,0.00036986,14]
[377589678,1754448739804,-426.54,0.00036986,14]
[377589679,1754448739813,-1685.19,0.00036986,14]
[377589680,1754448739823,-546.47,0.00036986,14]
[377589681,1754448739832,-400.0,0.00036986,14]
[377589682,1754448739841,-1042.07,0.00036986,14]
[377589683,1754448739850,-607.47,0.00036986,14]
[377589684,1754448739859,-400.0,0.00036986,14]
[377589685,1754448739870,-1387.34,0.00036986,14]
[377589686,1754448739881,-1608.62,0.00036986,14]
[377589687,1754448739890,-640.46,0.00036986,14]
[377589688,1754448739899,-1266.36,0.00036986,14]
[377589689,1754448739909,-400.0,0.00036986,14]
[377589690,1754448739919,-1198.83,0.00036986,14]
[377589691,1754448739928,-850.06,0.00036986,14]
[377589692,1754448739938,-1040.96,0.00036986,14]
[377589693,1754448739947,-400.0,0.00036986,14]
[377589694,1754448739958,-400.0,0.00036986,14]
[377589695,1754448739969,-2213.68,0.00036986,14]
[377589696,1754448739979,-627.73,0.00036986,14]
[377589697,1754448739989,-400.0,0.00036986,14]
[377589698,1754448739999,-400.0,0.00036986,14]
[377589699,1754448740010,-189.233105,0.00036986,7]
[377589700,1754448740019,-471.56,0.00036986,14]
[377589701,1754448740029,-400.0,0.00036986,14]
[377589702,1754448740040,-511.19,0.00036986,14]
[377589703,1754448740050,-400.0,0.00036986,14]
[377589704,1754448740059,-400.0,0.00036986,14]
[377589705,1754448740071,-400.0,0.00036986,14]
[377589706,1754448740081,-400.0,0.00036986,14]
[377589707,1754448740091,-440.85,0.00036986,14]
[377589708,1754448740100,-860.58,0.00036986,14]
[377589709,1754448740110,-444.25,0.00036986,14]
[377589710,1754448740119,-1113.65,0.00036986,14]
[377589711,1754448740129,-400.0,0.00036986,14]
[377589712,1754448740141,-400.0,0.00036986,14]
[377589713,1754448740151,-400.0,0.00036986,14]
[377589714,1754448740160,-185.54036748,0.00036986,14]
[377589715,1754448740169,-321.36834531,0.00036986,14]
[377589716,1754448740179,-985.67,0.00036986,14]
[377589717,1754448740189,-400.0,0.00036986,14]
[377589718,1754448740200,-523.26,0.00036986,14]
[377589719,1754448740211,-400.0,0.00036986,14]
[377589720,1754448740222,-400.0,0.00036986,14]
[377589721,1754448740232,-400.0,0.00036986,14]
[377589722,1754448740242,-531.05,0.00036986,14]
[377589723,1754448740253,-1788.17,0.00036986,14]
[377589724,1754448740263,-400.0,0.00036986,14]
[377589725,1754448740273,-1913.41,0.00036986,14]
[377589726,1754448740284,-1243.8,0.00036986,14]
[377589727,1754448740294,-400.0,0.00036986,14]
[377589728,1754448740305,-400.0,0.00036986,14]
[377589729,1754448740316,-2195.18,0.00036986,14]
[377589730,1754448740326,-400.0,0.00036986,14]
[377589731,1754448740336,-973.74,0.00036986,14]
[377589732,1754448740345,-400.0,0.00036986,14]
[377589733,1754448740355,-400.0,0.00036986,14]
[377589734,1754448740364,-400.0,0.00036986,14]
[377589735,1754448740374,-400.0,0.00036986,14]
[377589736,1754448740384,-400.0,0.00036986,14]
[377589737,1754448740393,-511.74,0.00036986,14]
[377589738,1754448740403,-1237.93,0.00036986,14]
[377589739,1754448740412,-1927.1,0.00036986,14]
[377589740,1754448740423,-1421.29,0.00036986,14]
[377589741,1754448740432,-880.55,0.00036986,14]
[377589742,1754448740442,-1559.95,0.00036986,14]
[377589743,1754448740452,-400.0,0.00036986,14]
[377589744,1754448740462,-400.0,0.00036986,14]
[377589745,1754448740471,-764.11,0.00036986,14]
[377589746,1754448740481,-832.23,0.00036986,14]
[377589747,1754448740491,-400.0,0.00036986,14]
[377589748,1754448740500,-400.0,0.00036986,14]
[377589749,1754448740509,-1200.18,0.00036986,14]
[377589750,1754448740519,-982.62,0.00036986,14]
[377589751,1754448740529,-851.23,0.00036986,14]
[377589752,1754448740538,-483.16,0.00036986,14]
[377589753,1754448740548,-1009.21,0.00036986,14]
[377589754,1754448740557,-400.0,0.00036986,14]
[377589755,1754448740567,-400.0,0.00036986,14]
[377589756,1754448740577,-1056.91,0.00036986,14]
[377589757,1754448740587,-454.78,0.00036986,14]
[377589758,1754448740596,-1461.35,0.00036986,14]
[377589759,1754448740606,-400.0,0.00036986,14]
[377589760,1754448740616,-519.19,0.00036986,14]
[377589761,1754448740625,-400.0,0.00036986,14]
[377589762,1754448740634,-1050.13,0.00036986,14]
[377589763,1754448740644,-1907.53,0.00036986,14]
[377589764,1754448740655,-1615.6,0.00036986,14]
[377589765,1754448740665,-400.0,0.00036986,14]
[377589766,1754448740674,-1550.81,0.00036986,14]
[377589767,1754448740684,-400.0,0.00036986,14]
[377589768,1754448740694,-643.63,0.00036986,2]
[377589769,1754448740703,-400.0,0.00036986,14]
[377589770,1754448740712,-400.0,0.00036986,14]
[377589771,1754448740722,-400.0,0.00036986,14]
[377589772,1754448740731,-1830.1,0.00036986,14]
[377589773,1754448740741,-400.0,0.00036986,14]
[377589774,1754448740751,-400.0,0.00036986,14]
[377589775,1754448740763,-802.15,0.00036986,14]
[377589776,1754448740774,-1088.04,0.00036986,14]
[377589777,1754448740785,-3675.96,0.00036986,14]
[377589778,1754448740796,-417.37,0.00036986,14]
[377589779,1754448740805,-400.0,0.00036986,14]
[377589780,1754448740816,-1532.37,0.00036986,14]
[377589781,1754448740826,-498.81,0.00036986,14]
[377589782,1754448740836,-675.67,0.00036986,14]
[377589783,1754448740845,-401.24990566,0.00036986,14]
[377589784,1754448740855,-1930.27,0.00036986,14]
[377589785,1754448740865,-477.88,0.00036986,14]
[377589786,1754448740879,-400.0,0.00036986,14]
[377589787,1754448740889,-400.0,0.00036986,14]
[377589788,1754448740900,-400.0,0.00036986,14]
[377589789,1754448740912,-1895.26,0.00036986,14]
[377589790,1754448740923,-400.0,0.00036986,14]
[377589791,1754448740933,-2398.75,0.00036986,14]
[377589792,1754448740943,-693.8,0.00036986,14]
[377589793,1754448740955,-1056.68,0.00036986,14]
[377589794,1754448740966,-400.0,0.00036986,14]
[377589795,1754448740976,-400.0,0.00036986,14]
[377589796,1754448740986,-694.7,0.00036986,14]
[377589797,1754448740996,-400.0,0.00036986,14]
[377589798,1754448741006,-1000.88,0.00036986,14]
[377589799,1754448741016,-400.0,0.00036986,14]
[377589800,1754448741025,-400.0,0.00036986,14]
[377589801,1754448741035,-1000.0,0.00036986,14]
[377589802,1754448741045,-400.0,0.00036986,14]
[377589803,1754448741055,-400.0,0.00036986,14]
[377589804,1754448741066,-1087.98,0.00036986,14]
[377589805,1754448741076,-1317.27,0.00036986,14]
[377589806,1754448741086,-432.07,0.00036986,14]
[377589807,1754448741096,-660.48,0.00036986,14]
[377589808,1754448741107,-1841.73,0.00036986,14]
[377589809,1754448741116,-400.0,0.00036986,14]
[377589810,1754448741126,-400.0,0.00036986,14]
[377589811,1754448741136,-1706.66,0.00036986,14]
[377589812,1754448741146,-400.0,0.00036986,14]
[377589813,1754448741156,-2115.6,0.00036986,14]